fUSD/lending_fUSD_20250206
["ID","MTS","AMOUNT","RATE_DAILY","PERIOD"]
[351861741,1738824647904,-500.0,0.0002,3]
[351861743,1738824647914,-500.0,0.0002,3]
[351861744,1738824647923,-279.043376,0.0002,3]
[351861746,1738824647933,-500.0,0.0002,3]
[351861748,1738824647944,-500.0,0.0002,3]
[351861750,1738824647954,-500.0,0.0002,3]
[351861752,1738824647963,-500.0,0.0002,3]
[351861754,1738824647973,-501.68693767,0.0002,3]
[351861755,1738824647983,-500.0,0.0002,3]
[351861757,1738824647993,-500.0,0.0002,3]
[351861759,1738824648003,-511.06926807,0.0002,3]
[351861761,1738824648013,-500.0,0.0002,3]
[351861763,1738824648024,-502.53707953,0.0002,3]
[351861765,1738824648035,-500.0,0.0002,3]
[351861766,1738824648045,-500.0,0.0002,3]
[351861768,1738824648056,-500.0,0.0002,3]
[351861770,1738824648066,-420.24,0.0002,3]
[351861772,1738824648076,-502.9789374,0.0002,3]
[351861774,1738824648086,-500.0,0.0002,3]
[351861775,1738824648096,-500.0,0.0002,3]
[351861777,1738824648106,-500.0,0.0002,3]
[351861779,1738824648116,-508.68067419,0.0002,3]
[351861781,1738824648126,-503.49588579,0.0002,3]
[351861783,1738824648136,-500.0,0.0002,3]
[351861784,1738824648147,-476.84010648,0.0002,3]
[351861786,1738824648158,-505.65641087,0.0002,3]
[351861788,1738824648168,-500.0,0.0002,3]
[351861790,1738824648178,-500.0,0.0002,3]
[351861791,1738824648187,-500.0,0.0002,3]
[351861793,1738824648197,-500.0,0.0002,3]
[351861795,1738824648207,-500.0,0.0002,3]
[351861797,1738824648216,-337.9253495,0.0002,3]
[351861798,1738824648225,-500.0,0.0002,3]
[351861800,1738824648235,-501.06325189,0.0002,3]
[351861802,1738824648245,-500.0,0.0002,3]
[351861804,1738824648255,-500.66601671,0.0002,2]
[351861805,1738824648267,-597.00590391,0.0002,3]
[351861807,1738824648280,-500.0,0.0002,3]
[351861809,1738824648291,-503.92633778,0.0002,3]
[351861811,1738824648301,-500.0,0.0002,3]
[351861813,1738824648312,-500.0,0.0002,3]
[351861814,1738824648321,-502.04174199,0.0002,3]
[351861816,1738824648332,-503.38175722,0.0002,3]
[351861818,1738824648342,-506.88877362,0.0002,3]
[351861820,1738824648353,-500.0,0.0002,3]
[351861822,1738824648363,-500.0,0.0002,3]
[351861823,1738824648373,-500.0,0.0002,3]
[351861825,1738824648383,-164.74179741,0.0002,3]
[351861827,1738824648393,-500.0,0.0002,3]
[351861829,1738824648402,-363.42817002,0.0002,3]
[351861831,1738824648412,-500.0,0.0002,3]
[351861832,1738824648422,-500.0,0.0002,3]
[351861834,1738824648431,-500.0,0.0002,3]
[351861836,1738824648442,-500.0,0.0002,3]
[351861838,1738824648453,-500.0,0.0002,3]
[351861840,1738824648463,-500.0,0.0002,3]
[351861842,1738824648473,-500.0,0.0002,3]
[351861844,1738824648482,-500.0,0.0002,3]
[351861845,1738824648491,-504.64573303,0.0002,3]
[351861847,1738824648502,-615.04691118,0.0002,3]
[351861849,1738824648512,-500.0,0.0002,3]
[351861851,1738824648523,-500.0,0.0002,3]
[351861852,1738824648533,-500.0,0.0002,3]
[351861853,1738824648543,-500.0,0.0002,3]
[351861854,1738824648554,-500.0,0.0002,3]
[351861855,1738824648565,-500.0,0.0002,3]
[351861856,1738824648576,-500.0,0.0002,3]
[351861857,1738824648586,-500.0,0.0002,3]
[351861858,1738824648596,-500.0,0.0002,3]
[351861859,1738824648607,-500.0,0.0002,3]
[351861860,1738824648617,-461.00081353,0.0002,3]
[351861861,1738824648627,-517.85587154,0.0002,3]
[351861862,1738824648638,-500.0,0.0002,3]
[351861863,1738824648648,-500.0,0.0002,3]
[351861864,1738824648662,-499.21786229,0.0002,3]
[351861865,1738824648674,-500.0,0.0002,3]
[351861866,1738824648684,-500.0,0.0002,3]
[351861867,1738824648695,-500.0,0.0002,3]
[351861868,1738824648705,-500.0,0.0002,3]
[351861869,1738824648716,-500.0,0.0002,3]
[351861870,1738824648727,-500.0,0.0002,3]
[351861871,1738824648740,-500.0,0.0002,3]
[351861873,1738824648752,-500.0,0.0002,3]
[351861874,1738824648764,-500.0,0.0002,3]
[351861876,1738824648774,-500.0,0.0002,3]
[351861877,1738824648785,-500.0,0.0002,3]
[351861879,1738824648797,-500.0,0.0002,3]
[351861881,1738824648807,-500.0,0.0002,3]
[351861883,1738824648818,-500.0,0.0002,3]
[351861885,1738824648829,-500.0,0.0002,3]
[351861887,1738824648839,-500.0,0.0002,3]
[351861889,1738824648849,-502.28666809,0.0002,3]
[351861891,1738824648859,-500.0,0.0002,3]
[351861893,1738824648869,-500.0,0.0002,3]
[351861895,1738824648880,-500.0,0.0002,3]
[351861905,1738824648967,-379.17052655,0.0002,3]
[351861907,1738824648977,-501.13028311,0.0002,3]
[351861909,1738824648986,-615.89567082,0.0002,3]
[351861911,1738824648996,-500.0,0.0002,3]
[351861913,1738824649006,-500.0,0.0002,3]
[351861915,1738824649016,-500.0,0.0002,3]
[351861917,1738824649025,-512.15914539,0.0002,3]
[351861919,1738824649035,-500.0,0.0002,3]
[351861921,1738824649045,-501.41046733,0.0002,3]
[351861923,1738824649054,-500.0,0.0002,3]
[351861925,1738824649064,-500.0,0.0002,3]
[351861927,1738824649074,-503.25347011,0.0002,3]
[351861929,1738824649083,-500.0,0.0002,3]
[351861930,1738824649094,-354.75739443,0.0002,3]
[351861932,1738824649103,-504.26751263,0.0002,3]
[351861935,1738824649113,-500.0,0.0002,3]
[351861937,1738824649123,-500.0,0.0002,3]
[351861938,1738824649132,-500.0,0.0002,3]
[351861940,1738824649142,-500.0,0.0002,3]
[351861942,1738824649152,-500.0,0.0002,3]
[351861944,1738824649162,-315.76915509,0.0002,3]
[351861946,1738824649172,-500.0,0.0002,3]
[351861948,1738824649182,-500.0,0.0002,3]
[351861951,1738824649192,-500.0,0.0002,3]
[351861953,1738824649203,-500.0,0.0002,3]
[351861955,1738824649212,-504.34520512,0.0002,3]
[351861957,1738824649222,-153.08618581,0.0002,3]
[351861958,1738824649231,-506.83946341,0.0002,3]
[351861960,1738824649240,-500.0,0.0002,3]
[351861962,1738824649250,-500.0,0.0002,3]
[351861964,1738824649260,-500.0,0.0002,3]
[351861966,1738824649270,-500.0,0.0002,3]
[351861968,1738824649279,-500.0,0.0002,3]
[351861970,1738824649289,-500.0,0.0002,3]
[351861972,1738824649299,-500.0,0.0002,3]
[351861974,1738824649309,-500.0,0.0002,3]
[351861976,1738824649319,-500.0,0.0002,3]
[351861978,1738824649328,-576.91590799,0.0002,3]
[351861980,1738824649337,-500.0,0.0002,3]
[351861982,1738824649347,-500.0,0.0002,3]
[351861984,1738824649356,-500.0,0.0002,3]
[351861986,1738824649366,-500.0,0.0002,3]
[351861988,1738824649375,-500.0,0.0002,3]
[351861990,1738824649385,-500.0,0.0002,3]
[351861992,1738824649395,-379.96463431,0.0002,3]
[351861994,1738824649405,-509.72951347,0.0002,3]
[351861996,1738824649415,-500.0,0.0002,3]
[351861998,1738824649425,-545.44737856,0.0002,3]
[351862000,1738824649434,-500.0,0.0002,3]
[351862002,1738824649444,-504.5608114,0.0002,3]
[351862004,1738824649453,-510.47392962,0.0002,3]
[351862006,1738824649463,-500.0,0.0002,3]
[351862009,1738824649473,-500.0,0.0002,3]
[351862011,1738824649482,-500.0,0.0002,3]
[351862012,1738824649491,-500.0,0.0002,3]
[351862014,1738824649501,-9999.97,0.0002,2]
[351862016,1738824649511,-238.20763383,0.0002,3]
[351862018,1738824649520,-503.48884204,0.0002,3]
[351862020,1738824649531,-458.97989573,0.0002,3]
[351862022,1738824649541,-500.0,0.0002,3]
[351862024,1738824649551,-503.86975832,0.0002,3]
[351862026,1738824649561,-512.18983702,0.0002,3]
[351862028,1738824649571,-517.12835655,0.0002,3]
[351862030,1738824649580,-500.0,0.0002,3]
[351862033,1738824649596,-500.0,0.0002,3]
[351862035,1738824649606,-500.0,0.0002,3]
[351862037,1738824649616,-500.0,0.0002,3]
[351862039,1738824649626,-503.16422567,0.0002,3]
[351862041,1738824649636,-500.0,0.0002,3]
[351862043,1738824649645,-500.0,0.0002,3]
[351862045,1738824649659,-500.0,0.0002,3]
[351862047,1738824649670,-500.0,0.0002,3]
[351862049,1738824649679,-246.51408831,0.0002,3]
[351862051,1738824649690,-500.0,0.0002,3]
[351862053,1738824649701,-500.0,0.0002,3]
[351862055,1738824649711,-527.206996,0.0002,3]
[351862057,1738824649721,-504.41542975,0.0002,3]
[351862059,1738824649731,-500.0,0.0002,3]
[351862061,1738824649740,-500.0,0.0002,3]
[351862063,1738824649749,-500.0,0.0002,3]
[351862064,1738824649758,-500.0,0.0002,3]
[351862066,1738824649768,-500.0,0.0002,3]
[351862068,1738824649779,-581.80701944,0.0002,3]
[351862070,1738824649788,-500.0,0.0002,3]
[351862072,1738824649797,-500.0,0.0002,3]
[351862074,1738824649807,-503.38245669,0.0002,3]
[351862076,1738824649817,-500.0,0.0002,3]
[351862078,1738824649826,-556.06414383,0.0002,3]
[351862080,1738824649836,-500.0,0.0002,3]
[351862082,1738824649846,-500.0,0.0002,3]
[351862084,1738824649856,-500.0,0.0002,3]
[351862086,1738824649865,-500.0,0.0002,3]
[351862088,1738824649875,-500.0,0.0002,3]
[351862090,1738824649884,-360.37536018,0.0002,3]
[351862092,1738824649894,-500.0,0.0002,3]
[351862094,1738824649903,-502.27799318,0.0002,3]
[351862096,1738824649912,-500.0,0.0002,3]
[351862098,1738824649922,-500.0,0.0002,3]
[351862100,1738824649931,-500.0,0.0002,3]
[351862102,1738824649940,-500.0,0.0002,3]
[351862104,1738824649949,-500.0,0.0002,3]
[351862106,1738824649959,-12499.99,0.0002,2]
[351862108,1738824649968,-500.0,0.0002,3]
[351862110,1738824649977,-644.65809402,0.0002,3]
[351862112,1738824649987,-500.0,0.0002,3]
[351862114,1738824649996,-515.83196798,0.0002,3]
[351862116,1738824650006,-500.0,0.0002,3]
[351862118,1738824650015,-390.49179172,0.0002,3]
[351862120,1738824650024,-500.0,0.0002,3]
[351862122,1738824650035,-500.0,0.0002,3]
[351862124,1738824650045,-500.0,0.0002,3]
[351862126,1738824650054,-500.0,0.0002,3]
[351862128,1738824650064,-500.0,0.0002,3]
[351862130,1738824650073,-608.81161885,0.0002,3]
[351862138,1738824650144,-500.0,0.0002,3]
[351862140,1738824650153,-500.0,0.0002,3]
[351862142,1738824650162,-511.78861332,0.0002,3]
[351862144,1738824650171,-502.9059713,0.0002,3]
[351862146,1738824650181,-500.0,0.0002,3]
[351862148,1738824650190,-502.99944854,0.0002,3]
[351862150,1738824650198,-631.24176953,0.0002,3]
[351862152,1738824650208,-500.0,0.0002,3]
[351862154,1738824650217,-500.0,0.0002,3]
[351862156,1738824650227,-500.0,0.0002,3]
[351862158,1738824650236,-503.95941141,0.0002,3]
[351862160,1738824650245,-535.99624289,0.0002,3]
[351862162,1738824650254,-500.0,0.0002,3]
[351862164,1738824650263,-500.0,0.0002,3]
[351862166,1738824650272,-251.9236338,0.0002,3]
[351862168,1738824650284,-500.0,0.0002,3]
[351862170,1738824650293,-500.0,0.0002,3]
[351862172,1738824650302,-500.0,0.0002,3]
[351862174,1738824650312,-500.0,0.0002,3]
[351862176,1738824650321,-500.0,0.0002,3]
[351862178,1738824650330,-500.0,0.0002,3]
[351862180,1738824650340,-208.60840618,0.0002,3]
[351862182,1738824650350,-500.0,0.0002,3]
[351862184,1738824650359,-502.17079788,0.0002,3]
[351862186,1738824650368,-188.65075576,0.0002,3]
[351862188,1738824650378,-507.71846749,0.0002,3]
[351862190,1738824650388,-500.0,0.0002,3]
[351862191,1738824650397,-505.00566725,0.0002,3]
[351862192,1738824650406,-500.0,0.0002,3]
[351862193,1738824650415,-450.12313584,0.0002,3]
[351862194,1738824650424,-500.0,0.0002,3]
[351862195,1738824650432,-500.0,0.0002,3]
[351862196,1738824650442,-496.03074087,0.0002,3]
[351862197,1738824650450,-500.0,0.0002,3]
[351862198,1738824650460,-549.60824675,0.0002,3]
[351862199,1738824650469,-500.0,0.0002,3]
[351862200,1738824650478,-935.78,0.0002,3]
[351862201,1738824650488,-510.46246903,0.0002,3]
[351862202,1738824650496,-935.78,0.0002,3]
[351862203,1738824650505,-499.67292831,0.0002,3]
[351862204,1738824650514,-935.78,0.0002,3]
[351862205,1738824650523,-935.78,0.0002,3]
[351862206,1738824650533,-935.78,0.0002,3]
[351862207,1738824650542,-500.0,0.0002,3]
[351862208,1738824650551,-935.78,0.0002,3]
[351862209,1738824650560,-935.78,0.0002,3]
[351862210,1738824650568,-500.0,0.0002,3]
[351862211,1738824650579,-935.78,0.0002,3]
[351862213,1738824650588,-504.36060809,0.0002,3]
[351862215,1738824650598,-508.17211267,0.0002,3]
[351862217,1738824650607,-500.0,0.0002,3]
[351862219,1738824650616,-500.0,0.0002,3]
[351862221,1738824650626,-505.63291647,0.0002,3]
[351862223,1738824650635,-567.57,0.0002,3]
[351862225,1738824650644,-501.67851712,0.0002,3]
[351862227,1738824650656,-502.93494386,0.0002,3]
[351862229,1738824650665,-500.0,0.0002,3]
[351862231,1738824650674,-500.0,0.0002,3]
[351862233,1738824650683,-500.0,0.0002,3]
[351862235,1738824650693,-500.0,0.0002,3]
[351862237,1738824650702,-501.9319765,0.0002,3]
[351862239,1738824650711,-500.0,0.0002,3]
[351862241,1738824650720,-500.0,0.0002,3]
[351862243,1738824650731,-500.0,0.0002,3]
[351862245,1738824650741,-500.0,0.0002,3]
[351862247,1738824650750,-500.0,0.0002,3]
[351862249,1738824650759,-500.0,0.0002,3]
[351862251,1738824650769,-500.0,0.0002,3]
[351862253,1738824650778,-500.0,0.0002,3]
[351862255,1738824650787,-500.0,0.0002,3]
[351862257,1738824650796,-501.33197028,0.0002,3]
[351862259,1738824650805,-500.0,0.0002,3]
[351862261,1738824650814,-500.0,0.0002,3]
[351862263,1738824650823,-504.91905147,0.0002,3]
[351862265,1738824650833,-500.0,0.0002,2]
[351862267,1738824650843,-500.0,0.0002,3]
[351862269,1738824650853,-500.0,0.0002,2]
[351862271,1738824650862,-500.0,0.0002,3]
[351862273,1738824650871,-500.0,0.0002,2]
[351862275,1738824650881,-595.66271704,0.0002,3]
[351862277,1738824650890,-513.29618728,0.0002,2]
[351862279,1738824650899,-501.50973234,0.0002,3]
[351862281,1738824650908,-503.18359733,0.0002,3]
[351862283,1738824650917,-500.0,0.0002,3]
[351862285,1738824650927,-214.28128648,0.0002,3]
[351862287,1738824650936,-500.0,0.0002,3]
[351862289,1738824650945,-498.07345284,0.0002,3]
[351862291,1738824650955,-502.17772149,0.0002,3]
[351862293,1738824650964,-500.0,0.0002,3]
[351862294,1738824650974,-500.0,0.0002,3]
[351862296,1738824650983,-500.0,0.0002,3]
[351862298,1738824650992,-500.0,0.0002,3]
[351862300,1738824651002,-500.0,0.0002,3]
[351862302,1738824651011,-524.22339025,0.0002,3]
[351862304,1738824651021,-500.0,0.0002,3]
[351862306,1738824651031,-500.0,0.0002,3]
[351862308,1738824651040,-500.0,0.0002,3]
[351862310,1738824651049,-500.0,0.0002,3]
[351862312,1738824651059,-500.0,0.0002,3]
[351862314,1738824651068,-500.0,0.0002,3]
[351862316,1738824651078,-500.0,0.0002,3]
[351862318,1738824651088,-500.0,0.0002,3]
[351862320,1738824651097,-608.30010008,0.0002,3]
[351862322,1738824651106,-500.0,0.0002,3]
[351862331,1738824651175,-500.0,0.0002,3]
[351862333,1738824651185,-500.0,0.0002,3]
[351862334,1738824651194,-506.50420752,0.0002,3]
[351862336,1738824651203,-500.0,0.0002,3]
[351862338,1738824651212,-500.0,0.0002,3]
[351862340,1738824651222,-500.0,0.0002,3]
[351862342,1738824651231,-500.0,0.0002,3]
[351862344,1738824651240,-500.0,0.0002,3]
[351862346,1738824651249,-500.0,0.0002,3]
[351862348,1738824651258,-500.0,0.0002,3]
[351862350,1738824651267,-500.0,0.0002,3]
[351862352,1738824651276,-218.92292598,0.0002,3]
[351862354,1738824651287,-162.16177794,0.0002,3]
[351862356,1738824651297,-637.15714688,0.0002,3]
[351862358,1738824651306,-334.57854574,0.0002,3]
[351862360,1738824651315,-500.0,0.0002,3]
[351862362,1738824651325,-500.0,0.0002,3]
[351862364,1738824651334,-500.0,0.0002,3]
[351862366,1738824651343,-500.0,0.0002,3]
[351862368,1738824651353,-500.0,0.0002,3]
[351862370,1738824651362,-500.0,0.0002,3]
[351862372,1738824651371,-500.0,0.0002,3]
[351862374,1738824651380,-500.0,0.0002,3]
[351862376,1738824651389,-500.0,0.0002,3]
[351862378,1738824651399,-500.0,0.0002,3]
[351862380,1738824651408,-500.0,0.0002,3]
[351862382,1738824651417,-500.0,0.0002,3]
[351862384,1738824651427,-500.0,0.0002,3]
[351862386,1738824651437,-500.0,0.0002,3]
[351862388,1738824651446,-500.0,0.0002,3]
[351862390,1738824651456,-500.0,0.0002,3]
[351862392,1738824651465,-500.0,0.0002,3]
[351862394,1738824651474,-429.68741984,0.0002,3]
[351862395,1738824651484,-500.0,0.0002,3]
[351862397,1738824651493,-500.0,0.0002,3]
[351862399,1738824651503,-500.0,0.0002,3]
[351862401,1738824651513,-500.0,0.0002,3]
[351862403,1738824651523,-503.61540392,0.0002,3]
[351862405,1738824651534,-500.0,0.0002,3]
[351862407,1738824651544,-501.34036707,0.0002,3]
[351862410,1738824651554,-500.0,0.0002,3]
[351862411,1738824651564,-502.29042593,0.0002,3]
[351862414,1738824651573,-500.0,0.0002,3]
[351862415,1738824651583,-500.0,0.0002,3]
[351862417,1738824651592,-500.0,0.0002,3]
[351862419,1738824651603,-500.0,0.0002,3]
[351862421,1738824651612,-366.15083517,0.0002,3]
[351862423,1738824651621,-503.21153874,0.0002,3]
[351862425,1738824651630,-500.0,0.0002,3]
[351862427,1738824651639,-500.0,0.0002,3]
[351862429,1738824651649,-500.0,0.0002,3]
[351862431,1738824651661,-502.13396927,0.0002,3]
[351862433,1738824651671,-500.0,0.0002,3]
[351862435,1738824651681,-500.0,0.0002,3]
[351862437,1738824651691,-500.0,0.0002,3]
[351862439,1738824651702,-500.0,0.0002,3]
[351862441,1738824651711,-503.43760617,0.0002,3]
[351862443,1738824651721,-500.0,0.0002,3]
[351862445,1738824651732,-500.0,0.0002,3]
[351862447,1738824651742,-501.85892391,0.0002,3]
[351862449,1738824651751,-9999.98,0.0002,2]
[351862451,1738824651761,-500.0,0.0002,3]
[351862453,1738824651771,-513.67792107,0.0002,3]
[351862455,1738824651780,-2999.9,0.0002,2]
[351862457,1738824651790,-505.58089741,0.0002,3]
[351862459,1738824651799,-500.0,0.0002,3]
[351862461,1738824651810,-500.0,0.0002,3]
[351862463,1738824651819,-500.0,0.0002,3]
[351862465,1738824651829,-500.0,0.0002,3]
[351862467,1738824651838,-500.0,0.0002,3]
[351862469,1738824651848,-500.0,0.0002,3]
[351862471,1738824651858,-500.0,0.0002,3]
[351862473,1738824651868,-500.0,0.0002,3]
[351862474,1738824651878,-503.07938446,0.0002,3]
[351862475,1738824651887,-500.0,0.0002,3]
[351862476,1738824651896,-500.0,0.0002,3]
[351862477,1738824651906,-500.0,0.0002,3]
[351862478,1738824651916,-500.0,0.0002,3]
[351862479,1738824651925,-642.25391284,0.0002,3]
[351862480,1738824651935,-500.0,0.0002,3]
[351862481,1738824651944,-500.0,0.0002,3]
[351862482,1738824651954,-503.71587708,0.0002,3]
[351862483,1738824651963,-500.0,0.0002,3]
[351862484,1738824651973,-641.65828347,0.0002,3]
[351862485,1738824651984,-502.75950749,0.0002,3]
[351862486,1738824651993,-500.0,0.0002,3]
[351862487,1738824652003,-500.0,0.0002,3]
[351862488,1738824652013,-500.0,0.0002,3]
[351862490,1738824652022,-500.0,0.0002,3]
[351862491,1738824652033,-500.0,0.0002,3]
[351862493,1738824652042,-503.03821324,0.0002,3]
[351862495,1738824652051,-501.66392689,0.0002,3]
[351862497,1738824652060,-500.0,0.0002,3]
[351862499,1738824652069,-501.09998274,0.0002,3]
[351862501,1738824652079,-500.0,0.0002,3]
[351862503,1738824652088,-502.19314269,0.0002,3]
[351862510,1738824652156,-500.0,0.0002,3]
[351862512,1738824652166,-500.0,0.0002,3]
[351862514,1738824652177,-155.89777187,0.0002,3]
[351862516,1738824652186,-500.0,0.0002,3]
[351862518,1738824652195,-501.78763582,0.0002,3]
[351862520,1738824652205,-499.60087925,0.0002,3]
[351862522,1738824652214,-502.32489401,0.0002,3]
[351862524,1738824652223,-500.0,0.0002,3]
[351862526,1738824652232,-501.59268631,0.0002,3]
[351862528,1738824652241,-500.0,0.0002,3]
[351862530,1738824652249,-500.0,0.0002,3]
[351862532,1738824652259,-163.87192281,0.0002,3]
[351862534,1738824652267,-532.97617016,0.0002,3]
[351862536,1738824652276,-500.0,0.0002,3]
[351862538,1738824652288,-500.0,0.0002,3]
[351862540,1738824652297,-502.06597499,0.0002,3]
[351862542,1738824652306,-501.37802894,0.0002,3]
[351862544,1738824652316,-500.0,0.0002,3]
[351862546,1738824652325,-500.0,0.0002,3]
[351862548,1738824652335,-504.11760088,0.0002,3]
[351862550,1738824652344,-361.46059737,0.0002,3]
[351862552,1738824652353,-500.0,0.0002,3]
[351862554,1738824652362,-500.0,0.0002,3]
[351862556,1738824652372,-500.0,0.0002,3]
[351862557,1738824652381,-502.03898472,0.0002,3]
[351862559,1738824652390,-206.22158228,0.0002,3]
[351862561,1738824652399,-500.0,0.0002,3]
[351862563,1738824652409,-504.53605399,0.0002,3]
[351862566,1738824652419,-500.0,0.0002,3]
[351862568,1738824652428,-388.95674528,0.0002,3]
[351862570,1738824652438,-500.0,0.0002,3]
[351862572,1738824652448,-504.37455527,0.0002,3]
[351862574,1738824652457,-435.7458212,0.0002,3]
[351862576,1738824652467,-503.69106628,0.0002,3]
[351862578,1738824652476,-500.0,0.0002,3]
[351862580,1738824652485,-500.0,0.0002,3]
[351862582,1738824652494,-505.90994642,0.0002,3]
[351862583,1738824652503,-500.0,0.0002,3]
[351862585,1738824652512,-504.12057581,0.0002,3]
[351862587,1738824652521,-500.0,0.0002,3]
[351862589,1738824652531,-500.0,0.0002,3]
[351862591,1738824652540,-500.0,0.0002,3]
[351862593,1738824652549,-500.0,0.0002,3]
[351862595,1738824652558,-500.0,0.0002,3]
[351862598,1738824652575,-501.20250726,0.0002,3]
[351862601,1738824652590,-500.0,0.0002,3]
[351862604,1738824652609,-500.0,0.0002,3]
[351862607,1738824652627,-500.0,0.0002,3]
[351862609,1738824652642,-171.28194267,0.0002,3]
[351862612,1738824652662,-510.31320655,0.0002,3]
[351862615,1738824652680,-500.0,0.0002,3]
[351862618,1738824652701,-500.0,0.0002,3]
[351862621,1738824652719,-500.0,0.0002,3]
[351862624,1738824652736,-500.0,0.0002,3]
[351862627,1738824652755,-500.0,0.0002,3]
[351862629,1738824652770,-217.6747279,0.0002,3]
[351862632,1738824652789,-550.06714301,0.0002,3]
[351862634,1738824652802,-500.0,0.0002,3]
[351862637,1738824652818,-500.0,0.0002,3]
[351862639,1738824652830,-500.0,0.0002,3]
[351862642,1738824652846,-500.0,0.0002,3]
[351862644,1738824652862,-500.0,0.0002,3]
[351862647,1738824652877,-296.34448034,0.0002,3]
[351862650,1738824652892,-500.0,0.0002,3]
[351862652,1738824652906,-512.11002416,0.0002,3]
[351862655,1738824652921,-500.0,0.0002,3]
[351862657,1738824652935,-500.0,0.0002,3]
[351862660,1738824652949,-500.0,0.0002,3]
[351862662,1738824652964,-503.09379956,0.0002,3]
[351862664,1738824652978,-500.0,0.0002,3]
[351862667,1738824652993,-536.61391049,0.0002,3]
[351862669,1738824653007,-200.86644267,0.0002,3]
[351862672,1738824653021,-505.22833877,0.0002,3]
[351862675,1738824653036,-502.0498133,0.0002,3]
[351862677,1738824653051,-500.0,0.0002,3]
[351862680,1738824653067,-500.0,0.0002,3]
[351862682,1738824653083,-500.0,0.0002,3]
[351862685,1738824653097,-500.0,0.0002,3]
[351862688,1738824653113,-500.0,0.0002,3]
[351862690,1738824653127,-500.0,0.0002,3]
[351862693,1738824653141,-552.39130321,0.0002,3]
[351862695,1738824653156,-500.0,0.0002,3]
[351862698,1738824653170,-500.0,0.0002,3]
[351862700,1738824653183,-500.0,0.0002,3]
[351862703,1738824653199,-500.0,0.0002,3]
[351862705,1738824653214,-500.0,0.0002,3]
[351862708,1738824653228,-500.0,0.0002,3]
[351862710,1738824653243,-503.32684782,0.0002,3]
[351862722,1738824653330,-500.0,0.0002,3]
[351862724,1738824653353,-500.0,0.0002,3]
[351862726,1738824653362,-500.0,0.0002,3]